[Event "December 5 Late 2023"]
[Site "https://www.chess.com"]
[Date "2023.12.05"]
[Round "2"]
[White "Davidson, Kevin"]
[Black "Rastbod, Ali"]
[Result "0-1"]
[Board "91"]
[TimeControl "180+1"]
[WhiteFideId "2056810"]
[BlackFideId "12567477"]
[WhiteElo "2441"]
[BlackElo "2766"]
[WhiteTeam "USA"]
[BlackTeam "IRI"]
[WhiteClock "0:00:00"]
[BlackClock "0:01:19"]

1. e4 {[%clk 0:03:00]}  d6 {[%clk 0:02:55]} 2. d4 {[%clk 0:03:00]}  Nf6 {[%clk 0:02:55]} 3. Nc3 {[%clk 0:03:00]}  g6 {[%clk 0:02:56]} 4. f4 {[%clk 0:02:59]}  Bg7 {[%clk 0:02:54]} 5. Nf3 {[%clk 0:03:00]}  c5 {[%clk 0:02:52]} 6. Bb5+ {[%clk 0:03:00]}  Nfd7 {[%clk 0:02:48]} 7. d5 {[%clk 0:02:56]}  a6 {[%clk 0:02:46]} 8. Bxd7+ {[%clk 0:02:55]}  Bxd7 {[%clk 0:02:44]} 9. a4 {[%clk 0:02:55]}  Bg4 {[%clk 0:02:44]} 10. h3 {[%clk 0:02:52]}  Bxf3 {[%clk 0:02:44]} 11. Qxf3 {[%clk 0:02:53]}  Nd7 {[%clk 0:02:44]} 12. O-O {[%clk 0:02:49]}  O-O {[%clk 0:02:45]} 13. Kh1 {[%clk 0:02:44]}  Rb8 {[%clk 0:02:21]} 14. a5 {[%clk 0:02:43]}  b5 {[%clk 0:02:21]} 15. axb6 {[%clk 0:02:43]}  Rxb6 {[%clk 0:02:19]} 16. Qd3 {[%clk 0:02:25]}  Qc8 {[%clk 0:02:16]} 17. Ra4 {[%clk 0:02:23]}  Qb7 {[%clk 0:02:11]} 18. b3 {[%clk 0:02:17]}  Ra8 {[%clk 0:02:11]} 19. Bd2 {[%clk 0:02:14]}  Rb4 {[%clk 0:02:11]} 20. Rfa1 {[%clk 0:02:07]}  c4 {[%clk 0:02:05]} 21. Rxb4 {[%clk 0:01:44]}  Qxb4 {[%clk 0:02:06]} 22. bxc4 {[%clk 0:01:26]}  Nc5 {[%clk 0:01:54]} 23. Qe3 {[%clk 0:01:08]}  Qxc4 {[%clk 0:01:53]} 24. e5 {[%clk 0:00:51]}  a5 {[%clk 0:01:52]} 25. Ra3 {[%clk 0:00:27]}  a4 {[%clk 0:01:51]} 26. Kh2 {[%clk 0:00:21]}  h5 {[%clk 0:01:38]} 27. Ne2 {[%clk 0:00:11]}  Qxd5 {[%clk 0:01:36]} 28. Bb4 {[%clk 0:00:10]}  Ne6 {[%clk 0:01:31]} 29. Nc3 {[%clk 0:00:08]}  Qc6 {[%clk 0:01:25]} 30. exd6 {[%clk 0:00:05]}  exd6 {[%clk 0:01:26]} 31. Qd3 {[%clk 0:00:03]}  Nxf4 {[%clk 0:01:22]} 32. Qxd6 {[%clk 0:00:03]}  Qxd6 {[%clk 0:01:21]} 33. Bxd6 {[%clk 0:00:03]}  Bxc3 {[%clk 0:01:19]} 34. Rxc3 {[%clk 0:00:03]}  Nd5 {[%clk 0:01:17]} 35. Ra3 {[%clk 0:00:03]}  Nb6 {[%clk 0:01:18]} 36. Be7 {[%clk 0:00:01]}  Nc4 {[%clk 0:01:18]} 37. Ra2 {[%clk 0:00:01]}  f5 {[%clk 0:01:17]} 38. Kg3 {[%clk 0:00:02]}  Kf7 {[%clk 0:01:18]} 39. Bb4 {[%clk 0:00:01]}  g5 {[%clk 0:01:18]} 40. Kf3 {[%clk 0:00:02]}  Ke6 {[%clk 0:01:18]} 41. Ke2 {[%clk 0:00:01]}  Kd5 {[%clk 0:01:19]} 42. Kd3 {[%clk 0:00:02]}  f4 {[%clk 0:01:19]} 43. Kc3 {[%clk 0:00:02]}  g4 {[%clk 0:01:20]} 44. Be7 {[%clk 0:00:02]}  f3 {[%clk 0:01:19]} 45. hxg4 {[%clk 0:00:02]}  fxg2 {[%clk 0:01:19]} 46. Ra1 {[%clk 0:00:02]}  hxg4 {[%clk 0:01:20]} 47. Kb4 {[%clk 0:00:01]}  Rb8+ {[%clk 0:01:19]} 48. Kxa4 {[%clk 0:00:00]}  Ra8+ {[%clk 0:01:19]} 0-1

[Event "December 5 Late 2023"]
[Site "https://www.chess.com"]
[Date "2023.12.05"]
[Round "2"]
[White "Martins, Vinicius Tine"]
[Black "yaguigor"]
[Result "0-1"]
[Board "94"]
[TimeControl "180+1"]
[WhiteFideId "2112884"]
[WhiteElo "2653"]
[BlackElo "2365"]
[WhiteTeam "BRA"]
[WhiteClock "0:00:00"]
[BlackClock "0:00:17"]

1. d4 {[%clk 0:02:59]}  d5 {[%clk 0:02:58]} 2. Nf3 {[%clk 0:02:58]}  Nf6 {[%clk 0:02:58]} 3. c4 {[%clk 0:02:57]}  c6 {[%clk 0:02:58]} 4. Nc3 {[%clk 0:02:56]}  e6 {[%clk 0:02:58]} 5. g3 {[%clk 0:02:54]}  dxc4 {[%clk 0:02:54]} 6. a4 {[%clk 0:02:54]}  Bb4 {[%clk 0:02:51]} 7. Bg2 {[%clk 0:02:53]}  c5 {[%clk 0:02:51]} 8. O-O {[%clk 0:02:48]}  Nc6 {[%clk 0:02:47]} 9. e3 {[%clk 0:02:48]}  O-O {[%clk 0:02:38]} 10. Na2 {[%clk 0:02:29]}  Qb6 {[%clk 0:02:05]} 11. Nxb4 {[%clk 0:02:26]}  Nxb4 {[%clk 0:01:55]} 12. Ne5 {[%clk 0:02:19]}  cxd4 {[%clk 0:01:52]} 13. Nxc4 {[%clk 0:02:13]}  Qc5 {[%clk 0:01:51]} 14. b3 {[%clk 0:01:50]}  e5 {[%clk 0:01:44]} 15. Ba3 {[%clk 0:01:48]}  a5 {[%clk 0:01:43]} 16. exd4 {[%clk 0:01:44]}  exd4 {[%clk 0:01:40]} 17. Qd2 {[%clk 0:01:43]}  Re8 {[%clk 0:01:08]} 18. Nxa5 {[%clk 0:01:33]}  Qxa5 {[%clk 0:01:06]} 19. Bxb4 {[%clk 0:01:32]}  Qb6 {[%clk 0:01:06]} 20. a5 {[%clk 0:01:20]}  Qd8 {[%clk 0:00:55]} 21. Rfd1 {[%clk 0:01:10]}  Bg4 {[%clk 0:00:54]} 22. Bxb7 {[%clk 0:01:00]}  Bxd1 {[%clk 0:00:48]} 23. Rxd1 {[%clk 0:00:57]}  Rb8 {[%clk 0:00:33]} 24. a6 {[%clk 0:00:57]}  Rxb7 {[%clk 0:00:33]} 25. axb7 {[%clk 0:00:56]}  Qb6 {[%clk 0:00:34]} 26. Qxd4 {[%clk 0:00:50]}  Qxb7 {[%clk 0:00:34]} 27. h3 {[%clk 0:00:29]}  h5 {[%clk 0:00:29]} 28. Qc4 {[%clk 0:00:27]}  h4 {[%clk 0:00:23]} 29. Qxh4 {[%clk 0:00:23]}  Qf3 {[%clk 0:00:19]} 30. Rb1 {[%clk 0:00:00]}  Re4 {[%clk 0:00:17]} 0-1

[Event "December 5 Late 2023"]
[Site "https://www.chess.com"]
[Date "2023.12.05"]
[Round "2"]
[White "Cardozo Munar, Carlos Eduardo"]
[Black "Koellner, Ruben Gideon"]
[Result "0-1"]
[Board "95"]
[TimeControl "180+1"]
[WhiteFideId "4409477"]
[BlackFideId "12993093"]
[WhiteElo "2272"]
[BlackElo "2648"]
[WhiteTeam "COL"]
[BlackTeam "GER"]
[WhiteClock "0:01:53"]
[BlackClock "0:02:35"]

1. d4 {[%clk 0:02:59]}  d6 {[%clk 0:03:00]} 2. c3 {[%clk 0:02:58]}  e5 {[%clk 0:03:00]} 3. dxe5 {[%clk 0:02:57]}  dxe5 {[%clk 0:03:01]} 4. Qxd8+ {[%clk 0:02:58]}  Kxd8 {[%clk 0:03:02]} 5. b3 {[%clk 0:02:52]}  Be6 {[%clk 0:03:01]} 6. Bb2 {[%clk 0:02:53]}  c6 {[%clk 0:03:01]} 7. Nd2 {[%clk 0:02:53]}  Nd7 {[%clk 0:03:01]} 8. O-O-O {[%clk 0:02:53]}  Kc7 {[%clk 0:03:00]} 9. e3 {[%clk 0:02:54]}  f6 {[%clk 0:03:01]} 10. Bc4 {[%clk 0:02:54]}  Bxc4 {[%clk 0:02:59]} 11. Nxc4 {[%clk 0:02:54]}  Nh6 {[%clk 0:02:59]} 12. h3 {[%clk 0:02:54]}  a5 {[%clk 0:02:56]} 13. Ne2 {[%clk 0:02:47]}  Nc5 {[%clk 0:02:51]} 14. Ng3 {[%clk 0:02:41]}  b5 {[%clk 0:02:50]} 15. Nd2 {[%clk 0:02:41]}  Nd3+ {[%clk 0:02:48]} 16. Kc2 {[%clk 0:02:41]}  Nxf2 {[%clk 0:02:48]} 17. Nde4 {[%clk 0:02:40]}  Nxh1 {[%clk 0:02:46]} 18. Rxh1 {[%clk 0:02:40]}  Be7 {[%clk 0:02:46]} 19. Nh5 {[%clk 0:02:33]}  Nf5 {[%clk 0:02:43]} 20. Bc1 {[%clk 0:02:26]}  Rhg8 {[%clk 0:02:42]} 21. g4 {[%clk 0:02:26]}  Nd6 {[%clk 0:02:42]} 22. Nd2 {[%clk 0:02:23]}  g6 {[%clk 0:02:42]} 23. Ng3 {[%clk 0:02:23]}  f5 {[%clk 0:02:42]} 24. Rf1 {[%clk 0:02:19]}  Raf8 {[%clk 0:02:41]} 25. Nf3 {[%clk 0:02:10]}  fxg4 {[%clk 0:02:35]} 26. hxg4 {[%clk 0:02:11]}  e4 {[%clk 0:02:35]} 27. Nd2 {[%clk 0:02:03]}  Rxf1 {[%clk 0:02:36]} 28. Ngxf1 {[%clk 0:02:03]}  h5 {[%clk 0:02:35]} 29. Ng3 {[%clk 0:02:01]}  h4 {[%clk 0:02:35]} 30. Ngxe4 {[%clk 0:02:01]}  Nxe4 {[%clk 0:02:35]} 31. Nxe4 {[%clk 0:02:02]}  h3 {[%clk 0:02:36]} 32. Nf2 {[%clk 0:01:59]}  h2 {[%clk 0:02:35]} 33. Nh1 {[%clk 0:01:53]}  Rf8 {[%clk 0:02:35]} 0-1

[Event "December 5 Late 2023"]
[Site "https://www.chess.com"]
[Date "2023.12.05"]
[Round "2"]
[White "Ismagilov, Damir"]
[Black "Degtiarev, Evgeny"]
[Result "1-0"]
[Board "96"]
[TimeControl "180+1"]
[WhiteFideId "34199982"]
[BlackFideId "4149610"]
[WhiteElo "2590"]
[BlackElo "2356"]
[WhiteTeam "RUS"]
[BlackTeam "GER"]
[WhiteClock "0:01:30"]
[BlackClock "0:00:00"]

1. d4 {[%clk 0:03:00]}  Nf6 {[%clk 0:02:58]} 2. Bf4 {[%clk 0:03:00]}  d5 {[%clk 0:02:58]} 3. e3 {[%clk 0:02:59]}  c6 {[%clk 0:02:57]} 4. c4 {[%clk 0:02:59]}  e6 {[%clk 0:02:49]} 5. Nc3 {[%clk 0:02:56]}  Bd6 {[%clk 0:02:45]} 6. Bxd6 {[%clk 0:02:55]}  Qxd6 {[%clk 0:02:46]} 7. c5 {[%clk 0:02:56]}  Qe7 {[%clk 0:02:45]} 8. f4 {[%clk 0:02:57]}  b6 {[%clk 0:02:42]} 9. b4 {[%clk 0:02:56]}  a5 {[%clk 0:02:39]} 10. a3 {[%clk 0:02:56]}  Nbd7 {[%clk 0:02:28]} 11. Nf3 {[%clk 0:02:56]}  O-O {[%clk 0:02:20]} 12. Bd3 {[%clk 0:02:56]}  Ba6 {[%clk 0:02:06]} 13. O-O {[%clk 0:02:53]}  Bxd3 {[%clk 0:02:03]} 14. Qxd3 {[%clk 0:02:54]}  b5 {[%clk 0:02:01]} 15. Ne5 {[%clk 0:02:53]}  Rfc8 {[%clk 0:01:52]} 16. h3 {[%clk 0:02:43]}  Ne8 {[%clk 0:01:19]} 17. Nxd7 {[%clk 0:02:26]}  Qxd7 {[%clk 0:01:18]} 18. f5 {[%clk 0:02:27]}  exf5 {[%clk 0:01:11]} 19. bxa5 {[%clk 0:02:04]}  g6 {[%clk 0:01:06]} 20. a4 {[%clk 0:02:03]}  b4 {[%clk 0:00:39]} 21. Na2 {[%clk 0:02:02]}  Rcb8 {[%clk 0:00:37]} 22. Rfb1 {[%clk 0:01:58]}  Rxa5 {[%clk 0:00:30]} 23. Rxb4 {[%clk 0:01:53]}  Rxb4 {[%clk 0:00:22]} 24. Nxb4 {[%clk 0:01:54]}  Nc7 {[%clk 0:00:22]} 25. Qc3 {[%clk 0:01:34]}  Ra7 {[%clk 0:00:20]} 26. a5 {[%clk 0:01:32]}  Nb5 {[%clk 0:00:18]} 27. Qd3 {[%clk 0:01:33]}  Qe6 {[%clk 0:00:11]} 28. a6 {[%clk 0:01:31]}  h5 {[%clk 0:00:06]} 29. Ra5 {[%clk 0:01:31]}  Nc7 {[%clk 0:00:04]} 30. Nc2 {[%clk 0:01:30]}  g5 {[%clk 0:00:00]} 31. Qb3 {[%clk 0:01:30]} 1-0

[Event "December 5 Late 2023"]
[Site "https://www.chess.com"]
[Date "2023.12.05"]
[Round "2"]
[White "Matlakov, Maxim"]
[Black "Bhandari, Krish"]
[Result "1-0"]
[Board "98"]
[TimeControl "180+1"]
[WhiteFideId "4168003"]
[BlackFideId "30955106"]
[WhiteElo "2998"]
[BlackElo "2114"]
[WhiteTeam "RUS"]
[BlackTeam "USA"]
[WhiteClock "0:02:41"]
[BlackClock "0:01:33"]

1. b3 {[%clk 0:03:00]}  g6 {[%clk 0:02:58]} 2. Bb2 {[%clk 0:03:01]}  Nf6 {[%clk 0:02:58]} 3. Nf3 {[%clk 0:03:00]}  Bg7 {[%clk 0:02:58]} 4. c4 {[%clk 0:03:01]}  O-O {[%clk 0:02:58]} 5. g3 {[%clk 0:03:01]}  b6 {[%clk 0:02:57]} 6. Bg2 {[%clk 0:03:01]}  Bb7 {[%clk 0:02:57]} 7. O-O {[%clk 0:03:02]}  d6 {[%clk 0:02:54]} 8. d4 {[%clk 0:03:02]}  Nbd7 {[%clk 0:02:54]} 9. Nc3 {[%clk 0:03:02]}  c5 {[%clk 0:02:53]} 10. d5 {[%clk 0:03:01]}  a6 {[%clk 0:02:51]} 11. a4 {[%clk 0:03:00]}  Ng4 {[%clk 0:02:48]} 12. h3 {[%clk 0:02:57]}  Nge5 {[%clk 0:02:48]} 13. Nd2 {[%clk 0:02:58]}  f5 {[%clk 0:02:28]} 14. Qc2 {[%clk 0:02:57]}  Qe8 {[%clk 0:02:19]} 15. f4 {[%clk 0:02:57]}  Nf7 {[%clk 0:02:19]} 16. Rae1 {[%clk 0:02:57]}  Nf6 {[%clk 0:02:02]} 17. e4 {[%clk 0:02:56]}  fxe4 {[%clk 0:02:01]} 18. Ncxe4 {[%clk 0:02:55]}  Qd7 {[%clk 0:01:57]} 19. Nf3 {[%clk 0:02:49]}  h6 {[%clk 0:01:44]} 20. Nxf6+ {[%clk 0:02:47]}  exf6 {[%clk 0:01:44]} 21. Qxg6 {[%clk 0:02:46]}  Nh8 {[%clk 0:01:44]} 22. Qh5 {[%clk 0:02:44]}  b5 {[%clk 0:01:42]} 23. Nh4 {[%clk 0:02:43]}  bxc4 {[%clk 0:01:37]} 24. Nf5 {[%clk 0:02:43]}  cxb3 {[%clk 0:01:37]} 25. Re7 {[%clk 0:02:40]}  Qxe7 {[%clk 0:01:37]} 26. Nxe7+ {[%clk 0:02:40]}  Kh7 {[%clk 0:01:33]} 27. Be4+ {[%clk 0:02:41]} 1-0

[Event "December 5 Late 2023"]
[Site "https://www.chess.com"]
[Date "2023.12.05"]
[Round "2"]
[White "Melikhov, Evgeny V."]
[Black "Martinez Alcantara, Jose Eduardo"]
[Result "0-1"]
[Board "100"]
[TimeControl "180+1"]
[WhiteFideId "4122046"]
[BlackFideId "3805662"]
[WhiteElo "2388"]
[BlackElo "2966"]
[WhiteTeam "GRE"]
[BlackTeam "PER"]
[WhiteClock "0:00:01"]
[BlackClock "0:02:40"]

1. d4 {[%clk 0:03:00]}  a6 {[%clk 0:03:00]} 2. e4 {[%clk 0:02:58]}  c6 {[%clk 0:03:01]} 3. Nf3 {[%clk 0:02:53]}  d5 {[%clk 0:03:02]} 4. exd5 {[%clk 0:02:48]}  cxd5 {[%clk 0:03:03]} 5. Bd3 {[%clk 0:02:48]}  Nf6 {[%clk 0:03:03]} 6. O-O {[%clk 0:02:45]}  Bg4 {[%clk 0:03:04]} 7. Nbd2 {[%clk 0:02:42]}  Nc6 {[%clk 0:03:04]} 8. c3 {[%clk 0:02:42]}  e6 {[%clk 0:03:04]} 9. Re1 {[%clk 0:02:42]}  Bd6 {[%clk 0:03:04]} 10. Nf1 {[%clk 0:02:41]}  O-O {[%clk 0:03:04]} 11. Ng3 {[%clk 0:02:38]}  Qc7 {[%clk 0:03:04]} 12. Bg5 {[%clk 0:02:32]}  Nh5 {[%clk 0:02:56]} 13. Nxh5 {[%clk 0:02:12]}  Bxh5 {[%clk 0:02:57]} 14. h3 {[%clk 0:02:06]}  Rae8 {[%clk 0:02:52]} 15. Qc2 {[%clk 0:01:57]}  Bg6 {[%clk 0:02:50]} 16. Bxg6 {[%clk 0:01:57]}  hxg6 {[%clk 0:02:51]} 17. Re2 {[%clk 0:01:46]}  b5 {[%clk 0:02:51]} 18. a3 {[%clk 0:01:42]}  Rc8 {[%clk 0:02:51]} 19. Qd2 {[%clk 0:01:36]}  Na5 {[%clk 0:02:51]} 20. Rae1 {[%clk 0:01:32]}  Nc4 {[%clk 0:02:51]} 21. Qd3 {[%clk 0:01:25]}  a5 {[%clk 0:02:48]} 22. Bc1 {[%clk 0:01:19]}  b4 {[%clk 0:02:48]} 23. axb4 {[%clk 0:01:18]}  axb4 {[%clk 0:02:49]} 24. Ng5 {[%clk 0:01:18]}  bxc3 {[%clk 0:02:46]} 25. bxc3 {[%clk 0:01:13]}  Bf4 {[%clk 0:02:41]} 26. Nxe6 {[%clk 0:00:32]}  fxe6 {[%clk 0:02:40]} 27. Qxg6 {[%clk 0:00:31]}  Rf6 {[%clk 0:02:38]} 28. Bxf4 {[%clk 0:00:17]}  Qxf4 {[%clk 0:02:39]} 29. Qg4 {[%clk 0:00:14]}  Qxg4 {[%clk 0:02:38]} 30. hxg4 {[%clk 0:00:14]}  Rc6 {[%clk 0:02:39]} 31. g5 {[%clk 0:00:13]}  Rf5 {[%clk 0:02:39]} 32. Rxe6 {[%clk 0:00:12]}  Rxe6 {[%clk 0:02:40]} 33. Rxe6 {[%clk 0:00:12]}  Rxg5 {[%clk 0:02:41]} 34. f4 {[%clk 0:00:11]}  Rg3 {[%clk 0:02:39]} 35. Re8+ {[%clk 0:00:08]}  Kf7 {[%clk 0:02:40]} 36. Rd8 {[%clk 0:00:09]}  Ke6 {[%clk 0:02:40]} 37. Re8+ {[%clk 0:00:09]}  Kd7 {[%clk 0:02:39]} 38. Rg8 {[%clk 0:00:08]}  Nd6 {[%clk 0:02:39]} 39. Kf2 {[%clk 0:00:07]}  Ne4+ {[%clk 0:02:39]} 40. Kf1 {[%clk 0:00:06]}  Nxc3 {[%clk 0:02:40]} 41. f5 {[%clk 0:00:01]}  Ne4 {[%clk 0:02:40]} 0-1

[Event "December 5 Late 2023"]
[Site "https://www.chess.com"]
[Date "2023.12.05"]
[Round "2"]
[White "Grigoriants, Sergey"]
[Black "Chaika, Vitalii"]
[Result "1-0"]
[Board "102"]
[TimeControl "180+1"]
[WhiteFideId "4130804"]
[BlackFideId "14111802"]
[WhiteElo "2925"]
[BlackElo "2386"]
[WhiteTeam "HUN"]
[BlackTeam "UKR"]
[WhiteClock "0:01:06"]
[BlackClock "0:00:18"]

1. d4 {[%clk 0:02:36]}  d6 {[%clk 0:02:59]} 2. Nf3 {[%clk 0:02:32]}  Nd7 {[%clk 0:02:59]} 3. e4 {[%clk 0:02:31]}  e5 {[%clk 0:02:58]} 4. Bc4 {[%clk 0:02:32]}  exd4 {[%clk 0:02:57]} 5. Qxd4 {[%clk 0:02:31]}  Ngf6 {[%clk 0:02:56]} 6. Nc3 {[%clk 0:02:31]}  Be7 {[%clk 0:02:54]} 7. Bf4 {[%clk 0:02:29]}  O-O {[%clk 0:02:53]} 8. O-O-O {[%clk 0:02:28]}  Nb6 {[%clk 0:02:42]} 9. Bb3 {[%clk 0:02:20]}  Be6 {[%clk 0:02:35]} 10. Qe3 {[%clk 0:02:08]}  Qc8 {[%clk 0:02:12]} 11. Nd4 {[%clk 0:02:03]}  Bxb3 {[%clk 0:02:01]} 12. axb3 {[%clk 0:02:02]}  Ng4 {[%clk 0:01:52]} 13. Qg3 {[%clk 0:01:59]}  Bf6 {[%clk 0:01:46]} 14. Nf5 {[%clk 0:01:56]}  Ne5 {[%clk 0:01:43]} 15. Bg5 {[%clk 0:01:24]}  Qe6 {[%clk 0:01:30]} 16. Nb5 {[%clk 0:01:14]}  Rfc8 {[%clk 0:01:08]} 17. Nbd4 {[%clk 0:01:12]}  Bxg5+ {[%clk 0:01:07]} 18. Qxg5 {[%clk 0:01:11]}  Qf6 {[%clk 0:00:48]} 19. Qxf6 {[%clk 0:01:11]}  gxf6 {[%clk 0:00:49]} 20. Ne7+ {[%clk 0:01:12]}  Kf8 {[%clk 0:00:47]} 21. Nxc8 {[%clk 0:01:13]}  Rxc8 {[%clk 0:00:44]} 22. f4 {[%clk 0:01:14]}  Ng4 {[%clk 0:00:42]} 23. Rd2 {[%clk 0:01:08]}  a6 {[%clk 0:00:18]} 24. Nf5 {[%clk 0:01:06]} 1-0

[Event "December 5 Late 2023"]
[Site "https://www.chess.com"]
[Date "2023.12.05"]
[Round "2"]
[White "Fawzy, Adham"]
[Black "Shtivelband, Richard"]
[Result "1-0"]
[Board "105"]
[TimeControl "180+1"]
[WhiteFideId "10613129"]
[BlackFideId "2017342"]
[WhiteElo "2815"]
[BlackElo "2374"]
[WhiteTeam "EGY"]
[BlackTeam "USA"]
[WhiteClock "0:01:21"]
[BlackClock "0:00:10"]

1. e4 {[%clk 0:03:00]}  c5 {[%clk 0:02:56]} 2. c4 {[%clk 0:02:59]}  Nc6 {[%clk 0:02:55]} 3. Nc3 {[%clk 0:02:58]}  g6 {[%clk 0:02:55]} 4. g3 {[%clk 0:02:59]}  Bg7 {[%clk 0:02:55]} 5. Bg2 {[%clk 0:03:00]}  e6 {[%clk 0:02:54]} 6. d3 {[%clk 0:03:01]}  Nge7 {[%clk 0:02:54]} 7. Be3 {[%clk 0:03:02]}  Nd4 {[%clk 0:02:50]} 8. Nge2 {[%clk 0:03:00]}  O-O {[%clk 0:02:48]} 9. O-O {[%clk 0:03:00]}  a6 {[%clk 0:02:45]} 10. Rb1 {[%clk 0:02:59]}  Rb8 {[%clk 0:02:39]} 11. b4 {[%clk 0:02:59]}  Nxe2+ {[%clk 0:02:38]} 12. Nxe2 {[%clk 0:02:59]}  cxb4 {[%clk 0:02:33]} 13. Rxb4 {[%clk 0:03:00]}  b5 {[%clk 0:02:32]} 14. cxb5 {[%clk 0:02:54]}  Rxb5 {[%clk 0:02:31]} 15. Rxb5 {[%clk 0:02:52]}  axb5 {[%clk 0:02:32]} 16. Qb3 {[%clk 0:02:52]}  Qa5 {[%clk 0:02:26]} 17. Bc5 {[%clk 0:02:51]}  Re8 {[%clk 0:02:23]} 18. f4 {[%clk 0:02:50]}  Nc6 {[%clk 0:02:20]} 19. e5 {[%clk 0:02:49]}  Bf8 {[%clk 0:02:14]} 20. Bxf8 {[%clk 0:02:32]}  Kxf8 {[%clk 0:02:13]} 21. Rc1 {[%clk 0:02:29]}  Qb6+ {[%clk 0:02:11]} 22. Kf1 {[%clk 0:02:26]}  Bb7 {[%clk 0:02:04]} 23. Qc3 {[%clk 0:02:06]}  Kg8 {[%clk 0:01:53]} 24. Qc5 {[%clk 0:01:52]}  Qa5 {[%clk 0:01:44]} 25. Qd6 {[%clk 0:01:50]}  Rd8 {[%clk 0:01:23]} 26. a3 {[%clk 0:01:50]}  Qb6 {[%clk 0:01:14]} 27. d4 {[%clk 0:01:46]}  Ra8 {[%clk 0:01:02]} 28. Qxd7 {[%clk 0:01:41]}  Rc8 {[%clk 0:00:44]} 29. d5 {[%clk 0:01:37]}  exd5 {[%clk 0:00:23]} 30. Bxd5 {[%clk 0:01:32]}  Rc7 {[%clk 0:00:22]} 31. Qd6 {[%clk 0:01:27]}  Rc8 {[%clk 0:00:17]} 32. e6 {[%clk 0:01:26]}  Rd8 {[%clk 0:00:15]} 33. exf7+ {[%clk 0:01:22]}  Kg7 {[%clk 0:00:15]} 34. f8=Q+ {[%clk 0:01:21]}  Rxf8 {[%clk 0:00:14]} 35. Bxc6 {[%clk 0:01:22]}  Rf6 {[%clk 0:00:13]} 36. Qe7+ {[%clk 0:01:21]}  Rf7 {[%clk 0:00:10]} 37. Qe5+ {[%clk 0:01:21]} 1-0

[Event "December 5 Late 2023"]
[Site "https://www.chess.com"]
[Date "2023.12.05"]
[Round "2"]
[White "Quesada Perez, Yasser"]
[Black "Figorito, Nick"]
[Result "1-0"]
[Board "106"]
[TimeControl "180+1"]
[WhiteFideId "3509362"]
[BlackFideId "30923689"]
[WhiteElo "2809"]
[BlackElo "2373"]
[WhiteTeam "CUB"]
[BlackTeam "USA"]
[WhiteClock "0:01:30"]
[BlackClock "0:00:07"]

1. e4 {[%clk 0:03:00]}  e6 {[%clk 0:03:00]} 2. d3 {[%clk 0:03:00]}  d5 {[%clk 0:03:01]} 3. Nd2 {[%clk 0:03:00]}  Nc6 {[%clk 0:03:01]} 4. Ngf3 {[%clk 0:03:01]}  Nf6 {[%clk 0:03:01]} 5. c3 {[%clk 0:03:00]}  dxe4 {[%clk 0:03:02]} 6. dxe4 {[%clk 0:03:00]}  e5 {[%clk 0:03:02]} 7. Bb5 {[%clk 0:03:00]}  Bd7 {[%clk 0:02:59]} 8. O-O {[%clk 0:02:59]}  Bd6 {[%clk 0:02:59]} 9. Nc4 {[%clk 0:02:59]}  Qe7 {[%clk 0:02:59]} 10. Qe2 {[%clk 0:02:58]}  O-O {[%clk 0:02:57]} 11. Nxd6 {[%clk 0:02:56]}  Qxd6 {[%clk 0:02:54]} 12. Bg5 {[%clk 0:02:55]}  h6 {[%clk 0:02:51]} 13. Rfd1 {[%clk 0:02:54]}  Qe7 {[%clk 0:02:13]} 14. Bxf6 {[%clk 0:02:54]}  gxf6 {[%clk 0:02:14]} 15. Nh4 {[%clk 0:02:53]}  Kh7 {[%clk 0:02:06]} 16. Qf3 {[%clk 0:02:43]}  Rg8 {[%clk 0:02:01]} 17. h3 {[%clk 0:02:44]}  Rg5 {[%clk 0:01:46]} 18. Kh1 {[%clk 0:02:37]}  Rag8 {[%clk 0:01:42]} 19. Bxc6 {[%clk 0:02:32]}  Bxc6 {[%clk 0:01:35]} 20. Nf5 {[%clk 0:02:29]}  Qe6 {[%clk 0:01:22]} 21. g4 {[%clk 0:02:15]}  Qc4 {[%clk 0:00:39]} 22. Ng3 {[%clk 0:02:14]}  h5 {[%clk 0:00:31]} 23. Kg2 {[%clk 0:02:08]}  h4 {[%clk 0:00:29]} 24. b3 {[%clk 0:02:07]}  Qe6 {[%clk 0:00:13]} 25. Nf1 {[%clk 0:01:57]}  Rxg4+ {[%clk 0:00:13]} 26. hxg4 {[%clk 0:01:47]}  Rxg4+ {[%clk 0:00:14]} 27. Kh2 {[%clk 0:01:41]}  Bxe4 {[%clk 0:00:13]} 28. Qe3 {[%clk 0:01:30]}  Rg2+ {[%clk 0:00:12]} 29. Kh1 {[%clk 0:01:30]}  Rg3+ {[%clk 0:00:11]} 30. Qxe4+ {[%clk 0:01:30]}  f5 {[%clk 0:00:07]} 31. Qxh4+ {[%clk 0:01:30]} 1-0

[Event "December 5 Late 2023"]
[Site "https://www.chess.com"]
[Date "2023.12.05"]
[Round "2"]
[White "YurasovMat-2012"]
[Black "Moiseenko, Alexander"]
[Result "0-1"]
[Board "107"]
[TimeControl "180+1"]
[BlackFideId "14102560"]
[WhiteElo "2372"]
[BlackElo "2799"]
[BlackTeam "UKR"]
[WhiteClock "0:00:12"]
[BlackClock "0:00:56"]

1. e4 {[%clk 0:02:59]}  c5 {[%clk 0:03:00]} 2. Nf3 {[%clk 0:02:58]}  e6 {[%clk 0:03:00]} 3. d3 {[%clk 0:02:57]}  Nc6 {[%clk 0:02:59]} 4. Nbd2 {[%clk 0:02:56]}  g6 {[%clk 0:02:59]} 5. g3 {[%clk 0:02:56]}  Bg7 {[%clk 0:03:00]} 6. Bg2 {[%clk 0:02:56]}  d5 {[%clk 0:03:00]} 7. O-O {[%clk 0:02:55]}  Nf6 {[%clk 0:03:01]} 8. Qe2 {[%clk 0:02:55]}  O-O {[%clk 0:03:00]} 9. Rd1 {[%clk 0:02:54]}  b6 {[%clk 0:03:00]} 10. c3 {[%clk 0:02:52]}  Ba6 {[%clk 0:02:58]} 11. h3 {[%clk 0:02:48]}  Rc8 {[%clk 0:02:55]} 12. b3 {[%clk 0:02:43]}  dxe4 {[%clk 0:02:51]} 13. Nxe4 {[%clk 0:02:42]}  Nxe4 {[%clk 0:02:51]} 14. Qxe4 {[%clk 0:02:38]}  Bxc3 {[%clk 0:02:51]} 15. Bg5 {[%clk 0:02:37]}  Bf6 {[%clk 0:02:43]} 16. Bh6 {[%clk 0:02:36]}  Bg7 {[%clk 0:02:42]} 17. Bxg7 {[%clk 0:02:34]}  Kxg7 {[%clk 0:02:42]} 18. d4 {[%clk 0:02:32]}  cxd4 {[%clk 0:02:38]} 19. Nxd4 {[%clk 0:02:07]}  Nxd4 {[%clk 0:02:37]} 20. Rxd4 {[%clk 0:02:06]}  Qf6 {[%clk 0:02:36]} 21. Rad1 {[%clk 0:01:51]}  Rfd8 {[%clk 0:02:35]} 22. Qe3 {[%clk 0:01:42]}  Rxd4 {[%clk 0:02:32]} 23. Rxd4 {[%clk 0:01:41]}  Rc7 {[%clk 0:02:08]} 24. Kh2 {[%clk 0:01:28]}  Bb7 {[%clk 0:02:03]} 25. Rf4 {[%clk 0:01:24]}  Qb2 {[%clk 0:02:01]} 26. Bxb7 {[%clk 0:01:17]}  Rxb7 {[%clk 0:02:02]} 27. h4 {[%clk 0:01:17]}  h5 {[%clk 0:02:01]} 28. Rc4 {[%clk 0:01:13]}  Rd7 {[%clk 0:01:56]} 29. Rc8 {[%clk 0:01:12]}  Rd2 {[%clk 0:01:37]} 30. Kg2 {[%clk 0:01:08]}  Qd4 {[%clk 0:01:31]} 31. Qf3 {[%clk 0:00:59]}  Qd5 {[%clk 0:01:27]} 32. Qxd5 {[%clk 0:00:46]}  exd5 {[%clk 0:01:22]} 33. a4 {[%clk 0:00:40]}  Rd3 {[%clk 0:01:20]} 34. b4 {[%clk 0:00:29]}  Rd4 {[%clk 0:01:17]} 35. Ra8 {[%clk 0:00:27]}  Rxb4 {[%clk 0:01:17]} 36. Rxa7 {[%clk 0:00:27]}  Kf6 {[%clk 0:01:16]} 37. Ra6 {[%clk 0:00:24]}  Ke5 {[%clk 0:01:14]} 38. Ra7 {[%clk 0:00:21]}  f5 {[%clk 0:01:14]} 39. a5 {[%clk 0:00:18]}  bxa5 {[%clk 0:01:14]} 40. Rxa5 {[%clk 0:00:19]}  Rb6 {[%clk 0:01:11]} 41. Kf3 {[%clk 0:00:19]}  Rb3+ {[%clk 0:01:05]} 42. Ke2 {[%clk 0:00:19]}  Ke4 {[%clk 0:01:03]} 43. Ra6 {[%clk 0:00:17]}  Rb2+ {[%clk 0:01:02]} 44. Kf1 {[%clk 0:00:16]}  d4 {[%clk 0:00:57]} 45. Rxg6 {[%clk 0:00:15]}  Kf3 {[%clk 0:00:56]} 46. Rg5 {[%clk 0:00:12]}  Rb1# {[%clk 0:00:56]} 0-1